[Event "Titled Tuesday Blitz March 15 Early 2022"]
[White "Mekhitarian, Krikor Sevag"]
[Black "Gareyev, Timur"]
[WhiteFideId "2107660"]
[BlackFideId "14200937"]
[WhiteElo "2598"]
[BlackElo "2582"]
[Result "1-0"]
[Round "07"]
[TimeControl "180+1"]
[Date "2022.03.15"]
[WhiteClock "0:00:13"]
[BlackClock "0:00:01"]

1. e4 {[%clk 0:03:00]}  g6 {[%clk 0:02:56]} 2. d4 {[%clk 0:03:00]}  d6 {[%clk 0:02:56]} 3. Nc3 {[%clk 0:02:59]}  a6 {[%clk 0:02:56]} 4. h4 {[%clk 0:02:58]}  Nf6 {[%clk 0:02:54]} 5. f3 {[%clk 0:02:54]}  Nc6 {[%clk 0:02:40]} 6. Be3 {[%clk 0:02:53]}  e5 {[%clk 0:02:39]} 7. Nge2 {[%clk 0:02:54]}  b5 {[%clk 0:02:32]} 8. Qd2 {[%clk 0:02:47]}  Bb7 {[%clk 0:02:22]} 9. a3 {[%clk 0:02:38]}  h5 {[%clk 0:02:21]} 10. O-O-O {[%clk 0:01:47]}  Bg7 {[%clk 0:01:56]} 11. Kb1 {[%clk 0:01:47]}  Rb8 {[%clk 0:01:43]} 12. d5 {[%clk 0:01:41]}  Na5 {[%clk 0:01:33]} 13. Nc1 {[%clk 0:01:38]}  Bc8 {[%clk 0:01:24]} 14. Nxb5 {[%clk 0:01:26]}  axb5 {[%clk 0:01:19]} 15. Qxa5 {[%clk 0:01:26]}  Bd7 {[%clk 0:01:18]} 16. Na2 {[%clk 0:01:21]}  O-O {[%clk 0:01:12]} 17. Qd2 {[%clk 0:01:20]}  Nh7 {[%clk 0:00:56]} 18. Nb4 {[%clk 0:01:17]}  f5 {[%clk 0:00:56]} 19. Bd3 {[%clk 0:01:12]}  fxe4 {[%clk 0:00:53]} 20. Bxe4 {[%clk 0:01:09]}  Qe8 {[%clk 0:00:53]} 21. Qd3 {[%clk 0:01:07]}  Bf5 {[%clk 0:00:47]} 22. Nc6 {[%clk 0:01:02]}  Ra8 {[%clk 0:00:38]} 23. g4 {[%clk 0:01:01]}  hxg4 {[%clk 0:00:37]} 24. fxg4 {[%clk 0:01:01]}  Bxe4 {[%clk 0:00:36]} 25. Qxe4 {[%clk 0:01:02]}  Nf6 {[%clk 0:00:36]} 26. Qg2 {[%clk 0:01:02]}  e4 {[%clk 0:00:36]} 27. Bd4 {[%clk 0:00:45]}  Ra4 {[%clk 0:00:27]} 28. Nb4 {[%clk 0:00:34]}  Qd7 {[%clk 0:00:20]} 29. g5 {[%clk 0:00:32]}  Nxd5 {[%clk 0:00:11]} 30. Nxd5 {[%clk 0:00:18]}  Bxd4 {[%clk 0:00:08]} 31. Qxe4 {[%clk 0:00:18]}  Bxb2 {[%clk 0:00:07]} 32. Qxg6+ {[%clk 0:00:16]}  Bg7 {[%clk 0:00:05]} 33. Nf6+ {[%clk 0:00:13]}  Rxf6 {[%clk 0:00:04]} 34. gxf6 {[%clk 0:00:14]}  Rxa3 {[%clk 0:00:02]} 35. Qxg7+ {[%clk 0:00:12]}  Qxg7 {[%clk 0:00:01]} 36. fxg7 {[%clk 0:00:13]} 1-0


[Site "https://www.chess.com"]

[Event "Titled Tuesday Blitz March 15 Early 2022"]
[White "Milosevic, Milos"]
[Black "Jumabayev, Rinat"]
[WhiteFideId "964875"]
[BlackFideId "13702661"]
[WhiteElo "2237"]
[BlackElo "2561"]
[Result "0-1"]
[Round "07"]
[TimeControl "180+1"]
[Date "2022.03.15"]
[WhiteClock "0:00:06"]
[BlackClock "0:00:16"]

1. e4 {[%clk 0:02:36]}  c5 {[%clk 0:02:57]} 2. Nf3 {[%clk 0:02:23]}  e6 {[%clk 0:02:57]} 3. d4 {[%clk 0:02:22]}  cxd4 {[%clk 0:02:58]} 4. Nxd4 {[%clk 0:02:23]}  Nc6 {[%clk 0:02:58]} 5. Nc3 {[%clk 0:02:21]}  Qc7 {[%clk 0:02:59]} 6. Nxc6 {[%clk 0:02:08]}  bxc6 {[%clk 0:02:58]} 7. Qg4 {[%clk 0:02:08]}  d5 {[%clk 0:02:56]} 8. Qg3 {[%clk 0:02:06]}  Qxg3 {[%clk 0:02:51]} 9. hxg3 {[%clk 0:02:07]}  Nf6 {[%clk 0:02:51]} 10. exd5 {[%clk 0:02:04]}  cxd5 {[%clk 0:02:50]} 11. Bg5 {[%clk 0:02:04]}  Be7 {[%clk 0:02:49]} 12. Bxf6 {[%clk 0:02:00]}  Bxf6 {[%clk 0:02:49]} 13. Bd3 {[%clk 0:01:57]}  Rb8 {[%clk 0:02:48]} 14. O-O-O {[%clk 0:01:55]}  Ke7 {[%clk 0:02:45]} 15. Rde1 {[%clk 0:01:48]}  Kd6 {[%clk 0:02:42]} 16. f4 {[%clk 0:01:29]}  Bd7 {[%clk 0:02:38]} 17. g4 {[%clk 0:01:29]}  h6 {[%clk 0:02:37]} 18. a3 {[%clk 0:01:18]}  Bxc3 {[%clk 0:01:47]} 19. bxc3 {[%clk 0:01:19]}  Rhc8 {[%clk 0:01:46]} 20. Kd2 {[%clk 0:01:08]}  Rc5 {[%clk 0:01:47]} 21. Re3 {[%clk 0:01:01]}  Ra5 {[%clk 0:01:45]} 22. c4 {[%clk 0:00:58]}  Rxa3 {[%clk 0:01:43]} 23. cxd5 {[%clk 0:00:55]}  exd5 {[%clk 0:01:44]} 24. g5 {[%clk 0:00:54]}  hxg5 {[%clk 0:01:43]} 25. fxg5 {[%clk 0:00:54]}  g6 {[%clk 0:01:18]} 26. Rf1 {[%clk 0:00:54]}  Be6 {[%clk 0:01:18]} 27. Rf6 {[%clk 0:00:45]}  Rb4 {[%clk 0:01:16]} 28. Re2 {[%clk 0:00:23]}  Rd4 {[%clk 0:01:15]} 29. g3 {[%clk 0:00:20]}  a5 {[%clk 0:01:14]} 30. Re1 {[%clk 0:00:18]}  a4 {[%clk 0:01:08]} 31. Rf4 {[%clk 0:00:18]}  Kc5 {[%clk 0:00:55]} 32. Rxd4 {[%clk 0:00:13]}  Kxd4 {[%clk 0:00:56]} 33. g4 {[%clk 0:00:10]}  Bxg4 {[%clk 0:00:53]} 34. Re7 {[%clk 0:00:10]}  Be6 {[%clk 0:00:48]} 35. Bxg6 {[%clk 0:00:10]}  Rf3 {[%clk 0:00:47]} 36. Bd3 {[%clk 0:00:07]}  a3 {[%clk 0:00:33]} 37. Ra7 {[%clk 0:00:08]}  Rg3 {[%clk 0:00:31]} 38. g6 {[%clk 0:00:03]}  fxg6 {[%clk 0:00:28]} 39. Ra4+ {[%clk 0:00:04]}  Ke5 {[%clk 0:00:28]} 40. Rxa3 {[%clk 0:00:05]}  g5 {[%clk 0:00:29]} 41. Ra4 {[%clk 0:00:03]}  g4 {[%clk 0:00:28]} 42. Ke2 {[%clk 0:00:03]}  Rf3 {[%clk 0:00:27]} 43. Rb4 {[%clk 0:00:02]}  Rf8 {[%clk 0:00:26]} 44. Rb7 {[%clk 0:00:02]}  Rg8 {[%clk 0:00:24]} 45. Kf2 {[%clk 0:00:02]}  d4 {[%clk 0:00:23]} 46. Kg3 {[%clk 0:00:02]}  Rf8 {[%clk 0:00:22]} 47. Rh7 {[%clk 0:00:01]}  Rf3+ {[%clk 0:00:21]} 48. Kg2 {[%clk 0:00:02]}  Bd5 {[%clk 0:00:21]} 49. Rh5+ {[%clk 0:00:03]}  Kd6 {[%clk 0:00:21]} 50. Kg1 {[%clk 0:00:02]}  g3 {[%clk 0:00:21]} 51. Rg5 {[%clk 0:00:03]}  Re3 {[%clk 0:00:21]} 52. Rg6+ {[%clk 0:00:03]}  Kc5 {[%clk 0:00:21]} 53. Rg5 {[%clk 0:00:04]}  Re1+ {[%clk 0:00:16]} 54. Bf1 {[%clk 0:00:03]}  g2 {[%clk 0:00:16]} 55. Rxg2 {[%clk 0:00:03]}  Bxg2 {[%clk 0:00:16]} 56. Kxg2 {[%clk 0:00:03]}  Kb4 {[%clk 0:00:16]} 57. Bd3 {[%clk 0:00:03]}  Kc3 {[%clk 0:00:17]} 58. Kf2 {[%clk 0:00:04]}  Re3 {[%clk 0:00:17]} 59. Kf1 {[%clk 0:00:04]}  Rxd3 {[%clk 0:00:15]} 60. cxd3 {[%clk 0:00:05]}  Kxd3 {[%clk 0:00:14]} 61. Ke1 {[%clk 0:00:05]}  Kc2 {[%clk 0:00:15]} 62. Ke2 {[%clk 0:00:06]}  d3+ {[%clk 0:00:16]} 0-1


[Site "https://www.chess.com"]

[Event "Titled Tuesday Blitz March 15 Early 2022"]
[White "Muradli, Mahammad"]
[Black "Guseva, Marina"]
[WhiteFideId "13409301"]
[BlackFideId "4149351"]
[WhiteElo "2611"]
[BlackElo "2160"]
[Result "1-0"]
[Round "07"]
[TimeControl "180+1"]
[Date "2022.03.15"]
[WhiteClock "0:01:18"]
[BlackClock "0:00:02"]

1. g3 {[%clk 0:02:55]}  d5 {[%clk 0:02:58]} 2. Bg2 {[%clk 0:02:55]}  c6 {[%clk 0:02:57]} 3. c4 {[%clk 0:02:54]}  dxc4 {[%clk 0:02:56]} 4. Na3 {[%clk 0:02:54]}  Nf6 {[%clk 0:02:55]} 5. Nxc4 {[%clk 0:02:54]}  g6 {[%clk 0:02:54]} 6. b3 {[%clk 0:02:54]}  Bg7 {[%clk 0:02:54]} 7. Bb2 {[%clk 0:02:54]}  O-O {[%clk 0:02:53]} 8. Nf3 {[%clk 0:02:55]}  Bg4 {[%clk 0:02:50]} 9. O-O {[%clk 0:02:53]}  Bxf3 {[%clk 0:02:49]} 10. Bxf3 {[%clk 0:02:54]}  Nbd7 {[%clk 0:02:49]} 11. d4 {[%clk 0:02:55]}  Nb6 {[%clk 0:02:39]} 12. e3 {[%clk 0:02:48]}  e6 {[%clk 0:02:34]} 13. Qc2 {[%clk 0:02:44]}  Re8 {[%clk 0:02:16]} 14. a4 {[%clk 0:02:44]}  a5 {[%clk 0:02:15]} 15. Ba3 {[%clk 0:02:41]}  Nfd5 {[%clk 0:02:07]} 16. Rfd1 {[%clk 0:02:30]}  Bf8 {[%clk 0:02:02]} 17. Bb2 {[%clk 0:02:04]}  Nb4 {[%clk 0:02:01]} 18. Qe2 {[%clk 0:02:03]}  Bg7 {[%clk 0:01:59]} 19. h4 {[%clk 0:02:03]}  h5 {[%clk 0:01:58]} 20. Rac1 {[%clk 0:02:04]}  N6d5 {[%clk 0:01:56]} 21. e4 {[%clk 0:02:01]}  Nf6 {[%clk 0:01:47]} 22. Kg2 {[%clk 0:02:01]}  Qe7 {[%clk 0:01:44]} 23. Ba3 {[%clk 0:02:00]}  Qc7 {[%clk 0:01:31]} 24. Qe1 {[%clk 0:01:58]}  Bf8 {[%clk 0:01:29]} 25. Qe3 {[%clk 0:01:56]}  Na2 {[%clk 0:01:22]} 26. Bxf8 {[%clk 0:01:48]}  Rxf8 {[%clk 0:01:21]} 27. Rc2 {[%clk 0:01:49]}  Nb4 {[%clk 0:01:20]} 28. Rcd2 {[%clk 0:01:49]}  Kg7 {[%clk 0:01:05]} 29. Qg5 {[%clk 0:01:48]}  Nh7 {[%clk 0:01:00]} 30. Qc5 {[%clk 0:01:44]}  Nf6 {[%clk 0:00:53]} 31. d5 {[%clk 0:01:44]}  exd5 {[%clk 0:00:49]} 32. exd5 {[%clk 0:01:41]}  Ra6 {[%clk 0:00:15]} 33. d6 {[%clk 0:01:40]}  Qd8 {[%clk 0:00:13]} 34. Ne5 {[%clk 0:01:36]}  Nfd5 {[%clk 0:00:12]} 35. Bxd5 {[%clk 0:01:33]}  Nxd5 {[%clk 0:00:12]} 36. Rxd5 {[%clk 0:01:33]}  cxd5 {[%clk 0:00:11]} 37. Rxd5 {[%clk 0:01:34]}  f6 {[%clk 0:00:11]} 38. Nc4 {[%clk 0:01:33]}  Rf7 {[%clk 0:00:10]} 39. Qd4 {[%clk 0:01:25]}  Rd7 {[%clk 0:00:10]} 40. Rb5 {[%clk 0:01:21]}  Ra8 {[%clk 0:00:02]} 41. Qd5 {[%clk 0:01:18]} 1-0


[Site "https://www.chess.com"]

[Event "Titled Tuesday Blitz March 15 Early 2022"]
[White "Nakamura, Hikaru"]
[Black "Dubov, Daniil"]
[WhiteFideId "2016192"]
[BlackFideId "24126055"]
[WhiteElo "2850"]
[BlackElo "2791"]
[Result "0-1"]
[Round "07"]
[TimeControl "180+1"]
[Date "2022.03.15"]
[WhiteClock "0:00:09"]
[BlackClock "0:00:16"]

1. Nf3 {[%clk 0:03:00]}  Nf6 {[%clk 0:03:00]} 2. b3 {[%clk 0:02:56]}  g6 {[%clk 0:03:00]} 3. Bb2 {[%clk 0:02:56]}  Bg7 {[%clk 0:03:01]} 4. d4 {[%clk 0:02:57]}  O-O {[%clk 0:03:01]} 5. e3 {[%clk 0:02:57]}  d5 {[%clk 0:03:01]} 6. Nbd2 {[%clk 0:02:57]}  c6 {[%clk 0:03:00]} 7. c4 {[%clk 0:02:57]}  Bg4 {[%clk 0:03:00]} 8. Bd3 {[%clk 0:02:57]}  e6 {[%clk 0:02:59]} 9. h3 {[%clk 0:02:56]}  Bxf3 {[%clk 0:02:58]} 10. Nxf3 {[%clk 0:02:57]}  Nbd7 {[%clk 0:02:59]} 11. Qc2 {[%clk 0:02:57]}  a6 {[%clk 0:02:58]} 12. O-O {[%clk 0:02:57]}  Re8 {[%clk 0:02:55]} 13. Rfd1 {[%clk 0:02:57]}  Rc8 {[%clk 0:02:55]} 14. Rac1 {[%clk 0:02:57]}  Qe7 {[%clk 0:02:55]} 15. a3 {[%clk 0:02:57]}  Qd8 {[%clk 0:02:44]} 16. Qb1 {[%clk 0:02:55]}  Qe7 {[%clk 0:02:43]} 17. b4 {[%clk 0:02:54]}  Nb6 {[%clk 0:02:42]} 18. c5 {[%clk 0:02:50]}  Nbd7 {[%clk 0:02:42]} 19. a4 {[%clk 0:02:50]}  Nh5 {[%clk 0:02:30]} 20. g4 {[%clk 0:02:16]}  Nhf6 {[%clk 0:02:29]} 21. b5 {[%clk 0:02:16]}  axb5 {[%clk 0:02:28]} 22. axb5 {[%clk 0:02:17]}  h5 {[%clk 0:02:28]} 23. g5 {[%clk 0:02:17]}  Nh7 {[%clk 0:02:28]} 24. h4 {[%clk 0:02:18]}  e5 {[%clk 0:02:28]} 25. Bf1 {[%clk 0:02:16]}  e4 {[%clk 0:02:21]} 26. Nh2 {[%clk 0:02:08]}  f6 {[%clk 0:02:21]} 27. f4 {[%clk 0:02:04]}  exf3 {[%clk 0:01:45]} 28. Qxg6 {[%clk 0:02:05]}  fxg5 {[%clk 0:01:36]} 29. Qxh5 {[%clk 0:01:55]}  Qxe3+ {[%clk 0:01:28]} 30. Kh1 {[%clk 0:01:55]}  Rf8 {[%clk 0:01:15]} 31. hxg5 {[%clk 0:00:59]}  Qxg5 {[%clk 0:01:03]} 32. Qh3 {[%clk 0:00:58]}  f2 {[%clk 0:00:56]} 33. Bd3 {[%clk 0:00:51]}  Ndf6 {[%clk 0:00:55]} 34. Nf3 {[%clk 0:00:31]}  Qe3 {[%clk 0:00:45]} 35. Bf5 {[%clk 0:00:26]}  Rce8 {[%clk 0:00:27]} 36. Ne5 {[%clk 0:00:20]}  Qxh3+ {[%clk 0:00:25]} 37. Bxh3 {[%clk 0:00:21]}  Ng5 {[%clk 0:00:25]} 38. Bf1 {[%clk 0:00:19]}  Nfe4 {[%clk 0:00:24]} 39. bxc6 {[%clk 0:00:19]}  Bxe5 {[%clk 0:00:22]} 40. dxe5 {[%clk 0:00:20]}  bxc6 {[%clk 0:00:22]} 41. Rd3 {[%clk 0:00:19]}  Rf4 {[%clk 0:00:21]} 42. Be2 {[%clk 0:00:18]}  Re6 {[%clk 0:00:18]} 43. Ra1 {[%clk 0:00:12]}  Rh6+ {[%clk 0:00:17]} 44. Kg2 {[%clk 0:00:12]}  Rfh4 {[%clk 0:00:17]} 45. Ra8+ {[%clk 0:00:10]}  Kf7 {[%clk 0:00:18]} 46. e6+ {[%clk 0:00:09]}  Kxe6 {[%clk 0:00:17]} 47. Re8+ {[%clk 0:00:09]}  Kd7 {[%clk 0:00:16]} 48. Rg8 {[%clk 0:00:09]}  Rh2+ {[%clk 0:00:16]} 0-1


[Site "https://www.chess.com"]

[Event "Titled Tuesday Blitz March 15 Early 2022"]
[White "Nenezic, Marko"]
[Black "Yang, Kaiqi"]
[WhiteFideId "912123"]
[BlackFideId "8604398"]
[WhiteElo "2457"]
[BlackElo "2373"]
[Result "1-0"]
[Round "07"]
[TimeControl "180+1"]
[Date "2022.03.15"]
[WhiteClock "0:00:07"]
[BlackClock "0:00:02"]

1. Nf3 {[%clk 0:03:00]}  e6 {[%clk 0:02:59]} 2. c4 {[%clk 0:02:57]}  d5 {[%clk 0:02:56]} 3. g3 {[%clk 0:02:57]}  dxc4 {[%clk 0:02:55]} 4. Bg2 {[%clk 0:02:56]}  Nc6 {[%clk 0:02:55]} 5. Qa4 {[%clk 0:02:52]}  a6 {[%clk 0:02:51]} 6. Qxc4 {[%clk 0:02:52]}  Nge7 {[%clk 0:02:46]} 7. d4 {[%clk 0:02:49]}  b5 {[%clk 0:02:44]} 8. Qd3 {[%clk 0:02:40]}  Bb7 {[%clk 0:02:41]} 9. O-O {[%clk 0:02:40]}  g6 {[%clk 0:02:32]} 10. e4 {[%clk 0:02:21]}  Bg7 {[%clk 0:02:32]} 11. Rd1 {[%clk 0:02:22]}  O-O {[%clk 0:02:31]} 12. Nc3 {[%clk 0:02:19]}  Rc8 {[%clk 0:02:23]} 13. h4 {[%clk 0:02:03]}  Nb4 {[%clk 0:02:21]} 14. Qe2 {[%clk 0:02:02]}  h6 {[%clk 0:01:54]} 15. Bf4 {[%clk 0:01:58]}  Qd7 {[%clk 0:01:36]} 16. Ne5 {[%clk 0:01:53]}  Qe8 {[%clk 0:01:35]} 17. a3 {[%clk 0:01:27]}  Nbc6 {[%clk 0:01:33]} 18. Nf3 {[%clk 0:01:25]}  Na5 {[%clk 0:01:30]} 19. Nh2 {[%clk 0:01:08]}  Nb3 {[%clk 0:01:26]} 20. Rab1 {[%clk 0:00:54]}  Nxd4 {[%clk 0:01:26]} 21. Rxd4 {[%clk 0:00:54]}  Bxd4 {[%clk 0:01:27]} 22. e5 {[%clk 0:00:55]}  Bxg2 {[%clk 0:01:26]} 23. Kxg2 {[%clk 0:00:56]}  Nd5 {[%clk 0:01:05]} 24. Nxd5 {[%clk 0:00:50]}  exd5 {[%clk 0:01:03]} 25. Rd1 {[%clk 0:00:43]}  c5 {[%clk 0:00:58]} 26. Ng4 {[%clk 0:00:43]}  f5 {[%clk 0:00:51]} 27. Nxh6+ {[%clk 0:00:42]}  Kh7 {[%clk 0:00:51]} 28. b4 {[%clk 0:00:40]}  Qe6 {[%clk 0:00:36]} 29. Qf3 {[%clk 0:00:38]}  Rce8 {[%clk 0:00:24]} 30. Re1 {[%clk 0:00:26]}  c4 {[%clk 0:00:22]} 31. h5 {[%clk 0:00:25]}  Bb6 {[%clk 0:00:10]} 32. hxg6+ {[%clk 0:00:22]}  Qxg6 {[%clk 0:00:10]} 33. Rh1 {[%clk 0:00:22]}  Kg7 {[%clk 0:00:10]} 34. Qxd5 {[%clk 0:00:21]}  Re7 {[%clk 0:00:04]} 35. Bc1 {[%clk 0:00:08]}  Rd8 {[%clk 0:00:04]} 36. Qf3 {[%clk 0:00:08]}  Rxe5 {[%clk 0:00:03]} 37. Bb2 {[%clk 0:00:07]}  Bd4 {[%clk 0:00:03]} 38. Bxd4 {[%clk 0:00:07]}  Rxd4 {[%clk 0:00:04]} 39. Qb7+ {[%clk 0:00:07]}  Kf6 {[%clk 0:00:02]} 40. Qb6+ {[%clk 0:00:07]} 1-0


[Site "https://www.chess.com"]

[Event "Titled Tuesday Blitz March 15 Early 2022"]
[White "Petrova, Irina"]
[Black "Johnson, Ben"]
[WhiteFideId "14124122"]
[BlackFideId "2010917"]
[WhiteElo "1993"]
[BlackElo "2220"]
[Result "0-1"]
[Round "07"]
[TimeControl "180+1"]
[Date "2022.03.15"]
[WhiteClock "0:01:33"]
[BlackClock "0:02:12"]

1. e4 {[%clk 0:02:58]}  c5 {[%clk 0:03:00]} 2. Nf3 {[%clk 0:02:58]}  Nc6 {[%clk 0:03:00]} 3. Bb5 {[%clk 0:02:58]}  g6 {[%clk 0:03:00]} 4. Bxc6 {[%clk 0:02:57]}  bxc6 {[%clk 0:03:01]} 5. O-O {[%clk 0:02:55]}  Bg7 {[%clk 0:03:01]} 6. c3 {[%clk 0:02:54]}  e5 {[%clk 0:02:55]} 7. d4 {[%clk 0:02:53]}  cxd4 {[%clk 0:02:55]} 8. cxd4 {[%clk 0:02:54]}  exd4 {[%clk 0:02:52]} 9. Nxd4 {[%clk 0:02:55]}  d5 {[%clk 0:02:48]} 10. exd5 {[%clk 0:02:51]}  Qxd5 {[%clk 0:02:47]} 11. Re1+ {[%clk 0:02:51]}  Ne7 {[%clk 0:02:42]} 12. Nf3 {[%clk 0:01:45]}  Qxd1 {[%clk 0:02:37]} 13. Rxd1 {[%clk 0:01:46]}  Bg4 {[%clk 0:02:37]} 14. Nc3 {[%clk 0:01:44]}  O-O {[%clk 0:02:24]} 15. Bg5 {[%clk 0:01:38]}  Rfe8 {[%clk 0:02:14]} 16. Rd7 {[%clk 0:01:33]}  Bxd7 {[%clk 0:02:12]} 0-1


[Site "https://www.chess.com"]

[Event "Titled Tuesday Blitz March 15 Early 2022"]
[White "Pranav Anand"]
[Black "Lazavik, Denis"]
[WhiteFideId "46626786"]
[BlackFideId "13515110"]
[WhiteElo "2259"]
[BlackElo "2437"]
[Result "0-1"]
[Round "07"]
[TimeControl "180+1"]
[Date "2022.03.15"]
[WhiteClock "0:00:17"]
[BlackClock "0:00:10"]

1. Nf3 {[%clk 0:03:00]}  d5 {[%clk 0:02:58]} 2. g3 {[%clk 0:03:01]}  c6 {[%clk 0:02:53]} 3. Bg2 {[%clk 0:03:02]}  Bf5 {[%clk 0:02:53]} 4. O-O {[%clk 0:03:02]}  e6 {[%clk 0:02:54]} 5. d3 {[%clk 0:03:03]}  h6 {[%clk 0:02:54]} 6. Nbd2 {[%clk 0:03:03]}  Nf6 {[%clk 0:02:53]} 7. a4 {[%clk 0:03:01]}  Be7 {[%clk 0:02:49]} 8. c3 {[%clk 0:03:00]}  O-O {[%clk 0:02:46]} 9. Re1 {[%clk 0:02:54]}  Bh7 {[%clk 0:02:32]} 10. Ne5 {[%clk 0:02:47]}  a5 {[%clk 0:02:25]} 11. d4 {[%clk 0:02:44]}  c5 {[%clk 0:02:19]} 12. e4 {[%clk 0:02:27]}  cxd4 {[%clk 0:02:17]} 13. cxd4 {[%clk 0:02:28]}  Nc6 {[%clk 0:02:12]} 14. Nxc6 {[%clk 0:02:17]}  bxc6 {[%clk 0:02:11]} 15. b3 {[%clk 0:01:54]}  Bb4 {[%clk 0:02:09]} 16. Ba3 {[%clk 0:01:48]}  Qb6 {[%clk 0:02:04]} 17. Bxb4 {[%clk 0:01:38]}  Qxb4 {[%clk 0:02:05]} 18. Rc1 {[%clk 0:01:32]}  Rfc8 {[%clk 0:01:45]} 19. e5 {[%clk 0:01:02]}  Nd7 {[%clk 0:01:44]} 20. Nf3 {[%clk 0:01:03]}  c5 {[%clk 0:01:43]} 21. Bf1 {[%clk 0:01:02]}  cxd4 {[%clk 0:01:31]} 22. Rxc8+ {[%clk 0:01:00]}  Rxc8 {[%clk 0:01:30]} 23. Nxd4 {[%clk 0:01:01]}  Be4 {[%clk 0:01:04]} 24. f3 {[%clk 0:00:55]}  Nxe5 {[%clk 0:00:58]} 25. fxe4 {[%clk 0:00:40]}  Qxd4+ {[%clk 0:00:57]} 26. Qxd4 {[%clk 0:00:41]}  Nf3+ {[%clk 0:00:58]} 27. Kg2 {[%clk 0:00:40]}  Nxd4 {[%clk 0:00:59]} 28. exd5 {[%clk 0:00:40]}  exd5 {[%clk 0:00:56]} 29. Rd1 {[%clk 0:00:41]}  Rc2+ {[%clk 0:00:52]} 30. Kh1 {[%clk 0:00:37]}  Nxb3 {[%clk 0:00:42]} 31. Rxd5 {[%clk 0:00:36]}  g6 {[%clk 0:00:42]} 32. Bd3 {[%clk 0:00:33]}  Rc3 {[%clk 0:00:34]} 33. Bb5 {[%clk 0:00:31]}  Rc2 {[%clk 0:00:32]} 34. Bf1 {[%clk 0:00:24]}  Nc5 {[%clk 0:00:28]} 35. Bb5 {[%clk 0:00:23]}  Kg7 {[%clk 0:00:28]} 36. Kg1 {[%clk 0:00:21]}  h5 {[%clk 0:00:27]} 37. Rd4 {[%clk 0:00:19]}  Ne6 {[%clk 0:00:26]} 38. Re4 {[%clk 0:00:20]}  Ng5 {[%clk 0:00:25]} 39. Re3 {[%clk 0:00:20]}  Nh3+ {[%clk 0:00:25]} 40. Kh1 {[%clk 0:00:20]}  Nf2+ {[%clk 0:00:21]} 41. Kg1 {[%clk 0:00:19]}  Ng4 {[%clk 0:00:21]} 42. Re2 {[%clk 0:00:19]}  Rc3 {[%clk 0:00:13]} 43. Kg2 {[%clk 0:00:19]}  Ne3+ {[%clk 0:00:13]} 44. Kf2 {[%clk 0:00:19]}  Nf5 {[%clk 0:00:13]} 45. Rd2 {[%clk 0:00:18]}  Ra3 {[%clk 0:00:13]} 46. Kg2 {[%clk 0:00:16]}  Ne3+ {[%clk 0:00:13]} 47. Kf2 {[%clk 0:00:16]}  Ng4+ {[%clk 0:00:13]} 48. Kg2 {[%clk 0:00:16]}  Ne5 {[%clk 0:00:14]} 49. Kf2 {[%clk 0:00:15]}  g5 {[%clk 0:00:12]} 50. Rd5 {[%clk 0:00:14]}  Kf6 {[%clk 0:00:11]} 51. Rd6+ {[%clk 0:00:14]}  Ke7 {[%clk 0:00:10]} 52. Ra6 {[%clk 0:00:14]}  Ra2+ {[%clk 0:00:09]} 53. Ke3 {[%clk 0:00:12]}  Ng4+ {[%clk 0:00:08]} 54. Ke4 {[%clk 0:00:12]}  Rxh2 {[%clk 0:00:06]} 55. Rxa5 {[%clk 0:00:13]}  Rf2 {[%clk 0:00:06]} 56. Ra7+ {[%clk 0:00:13]}  Kd6 {[%clk 0:00:07]} 57. a5 {[%clk 0:00:13]}  f5+ {[%clk 0:00:07]} 58. Kd3 {[%clk 0:00:13]}  Rb2 {[%clk 0:00:05]} 59. Be8 {[%clk 0:00:12]}  h4 {[%clk 0:00:05]} 60. gxh4 {[%clk 0:00:13]}  gxh4 {[%clk 0:00:06]} 61. a6 {[%clk 0:00:13]}  h3 {[%clk 0:00:06]} 62. Rh7 {[%clk 0:00:13]}  h2 {[%clk 0:00:06]} 63. Bg6 {[%clk 0:00:09]}  Ra2 {[%clk 0:00:05]} 64. Bxf5 {[%clk 0:00:09]}  h1=Q {[%clk 0:00:05]} 65. Rxh1 {[%clk 0:00:08]}  Nf2+ {[%clk 0:00:05]} 66. Kc3 {[%clk 0:00:08]}  Nxh1 {[%clk 0:00:06]} 67. Bd3 {[%clk 0:00:09]}  Nf2 {[%clk 0:00:05]} 68. Bc4 {[%clk 0:00:09]}  Ra1 {[%clk 0:00:05]} 69. Kb4 {[%clk 0:00:10]}  Kc7 {[%clk 0:00:05]} 70. Kc5 {[%clk 0:00:10]}  Ne4+ {[%clk 0:00:04]} 71. Kd4 {[%clk 0:00:11]}  Nd6 {[%clk 0:00:05]} 72. Bd3 {[%clk 0:00:12]}  Kb6 {[%clk 0:00:05]} 73. Kd5 {[%clk 0:00:12]}  Nb5 {[%clk 0:00:06]} 74. Bc4 {[%clk 0:00:12]}  Rxa6 {[%clk 0:00:05]} 75. Bd3 {[%clk 0:00:12]}  Ra5 {[%clk 0:00:06]} 76. Ke4 {[%clk 0:00:12]}  Nc7 {[%clk 0:00:07]} 77. Be2 {[%clk 0:00:12]}  Rc5 {[%clk 0:00:08]} 78. Kf4 {[%clk 0:00:13]}  Kc6 {[%clk 0:00:09]} 79. Bf1 {[%clk 0:00:14]}  Kd6 {[%clk 0:00:09]} 80. Ke3 {[%clk 0:00:14]}  Ke5 {[%clk 0:00:10]} 81. Be2 {[%clk 0:00:14]}  Nd5+ {[%clk 0:00:10]} 82. Kd2 {[%clk 0:00:15]}  Kd4 {[%clk 0:00:10]} 83. Bf1 {[%clk 0:00:15]}  Ne3 {[%clk 0:00:11]} 84. Bd3 {[%clk 0:00:15]}  Rc3 {[%clk 0:00:11]} 85. Bg6 {[%clk 0:00:16]}  Rc6 {[%clk 0:00:09]} 86. Bh7 {[%clk 0:00:16]}  Rh6 {[%clk 0:00:09]} 87. Bb1 {[%clk 0:00:15]}  Rh2+ {[%clk 0:00:10]} 88. Kc1 {[%clk 0:00:16]}  Kc3 {[%clk 0:00:10]} 89. Bc2 {[%clk 0:00:16]}  Rh1+ {[%clk 0:00:09]} 90. Bd1 {[%clk 0:00:17]}  Rxd1# {[%clk 0:00:10]} 0-1


[Site "https://www.chess.com"]